bitfinex/quotes_BTCUSD_20240820
["timestamp","ask_amount","ask_price","bid_price","bid_amount"]
[1724115938639,0.164121,60931.0,60928.0,0.00514869]
[1724115938885,0.591025,60929.0,60928.0,0.00514869]
[1724115939126,1.19062377,60929.0,60928.0,0.00514869]
[1724115939367,0.328273,60925.0,60921.0,0.2932]
[1724115939611,0.17134877,60924.0,60921.0,0.2932]
[1724115939861,0.17134877,60924.0,60919.0,0.0009075]
[1724115940098,0.164148,60921.0,60919.0,0.0009075]
[1724115940345,0.81384777,60920.0,60919.0,0.0009075]
[1724115940593,0.591163,60912.0,60904.0,0.2947]
[1724115940812,0.591163,60912.0,60905.0,0.51404632]
[1724115940813,0.76251177,60912.0,60905.0,0.51404632]
[1724115941279,0.76251177,60912.0,60904.0,0.2947]
[1724115941280,1.09085377,60912.0,60904.0,0.2947]
[1724115941518,0.27134877,60912.0,60904.0,0.2947]
[1724115941761,0.17134877,60912.0,60904.0,0.2947]
[1724115941990,0.17334877,60912.0,60904.0,0.2947]
[1724115943119,0.33751977,60912.0,60904.0,0.2947]
[1724115943544,0.17334877,60912.0,60904.0,0.2947]
[1724115943755,0.17334877,60912.0,60911.0,0.004264]
[1724115944156,0.33751977,60912.0,60911.0,0.004264]
[1724115944383,1.36616275,60912.0,60911.0,0.004264]
[1724115944540,1.46616275,60912.0,60911.0,0.004264]
[1724115945098,1.56481275,60912.0,60911.0,0.004264]
[1724115945558,1.75931275,60912.0,60911.0,0.004264]
[1724115945992,1.76975698,60912.0,60911.0,0.004264]
[1724115946408,1.72614,60912.0,60911.0,0.004264]
[1724115947043,2.054482,60912.0,60911.0,0.004264]
[1724115947275,2.054482,60912.0,60911.0,0.00410759]
[1724115948035,2.054482,60912.0,60895.0,0.254075]
[1724115948036,1.248148,60896.0,60895.0,0.254075]
[1724115948237,1.248148,60896.0,60895.0,0.26190305]
[1724115948238,1.92401157,60896.0,60895.0,0.26190305]
[1724115948462,1.92401157,60896.0,60895.0,0.254075]
[1724115948463,1.79919677,60896.0,60895.0,0.254075]
[1724115948638,1.79919677,60896.0,60895.0,0.07911054]
[1724115948841,1.99159677,60896.0,60895.0,0.01874495]
[1724115949034,2.16294554,60896.0,60895.0,0.01874495]
[1724115949455,2.16294554,60896.0,60891.0,0.0002]
[1724115949456,1.149575,60892.0,60891.0,3.878e-05]
[1724115949665,1.42092377,60892.0,60891.0,3.878e-05]
[1724115949895,2.14644254,60892.0,60891.0,3.878e-05]
[1724115950125,1.97509377,60892.0,60891.0,3.878e-05]
[1724115950379,1.98585949,60892.0,60891.0,3.878e-05]
[1724115950846,1.98585949,60892.0,60874.0,0.2843]
[1724115950847,0.772513,60875.0,60874.0,0.2843]
[1724115951044,0.164279,60872.0,60871.0,0.0002]
[1724115951394,1.09274377,60872.0,60871.0,0.0002]
[1724115952130,0.76418577,60872.0,60871.0,0.0002]
[1724115952353,0.76418577,60872.0,60834.0,0.16438]
[1724115952354,0.772568,60868.0,60846.0,0.001]
[1724115952561,1.40663745,60868.0,60846.0,0.51504632]
[1724115952793,1.50663745,60868.0,60846.0,0.51504632]
[1724115953663,1.37249577,60868.0,60846.0,0.51504632]
[1724115953867,1.04391677,60868.0,60846.0,0.51504632]
[1724115954079,1.04391677,60868.0,60862.0,0.2884]
[1724115954719,1.37249577,60868.0,60862.0,0.2884]
[1724115954971,1.05791677,60868.0,60862.0,0.2884]
[1724115955188,1.38649577,60868.0,60862.0,0.2884]
[1724115955399,1.05791677,60868.0,60862.0,0.2884]
[1724115955599,1.22642742,60868.0,60862.0,0.2884]
[1724115956241,1.22642742,60868.0,60867.0,0.306964]
[1724115956242,0.014,60868.0,60867.0,0.306964]
[1724115957112,0.164282,60871.0,60867.0,0.306964]
[1724115957345,0.014,60868.0,60867.0,0.306964]
[1724115957565,0.014,60868.0,60867.0,0.489664]
[1724115957777,0.17134877,60879.0,60868.0,0.297]
[1724115958009,0.17134877,60878.0,60868.0,0.297]
[1724115958205,0.164283,60871.0,60868.0,0.297]
[1724115958407,0.17134877,60871.0,60868.0,0.297]
[1724115959060,0.164285,60870.0,60868.0,0.297]
[1724115959237,0.17134877,60871.0,60868.0,0.297]
[1724115959492,0.33563177,60871.0,60868.0,0.297]
[1724115959712,0.17134877,60871.0,60868.0,0.297]
[1724115960960,0.18134877,60871.0,60868.0,0.297]
[1724115961172,0.164287,60869.0,60868.0,0.297]
[1724115961388,0.66420977,60869.0,60868.0,0.297]
[1724115961598,0.17134877,60869.0,60868.0,0.297]
[1724115961800,0.33563577,60869.0,60868.0,0.297]
[1724115962004,0.065837,60870.0,60868.0,0.297]
[1724115962206,0.37954406,60879.0,60868.0,0.297]
[1724115962207,0.01,60871.0,60868.0,0.297]
[1724115962435,0.23718277,60871.0,60868.0,0.297]
[1724115963271,0.1,60870.0,60868.0,0.297]
[1724115963690,0.264285,60870.0,60868.0,0.297]
[1724115963892,0.008,60869.0,60868.0,0.297]
[1724115964103,0.264285,60870.0,60868.0,0.297]
[1724115964321,0.4196718,60869.0,60868.0,0.297]
[1724115964522,0.4196718,60869.0,60867.0,0.190764]
[1724115964523,0.492868,60868.0,60867.0,0.009064]
[1724115964730,0.55104877,60868.0,60867.0,0.009064]
[1724115964910,0.43563777,60868.0,60867.0,0.009064]
[1724115965552,0.27134877,60868.0,60867.0,0.009064]
[1724115965757,0.43563777,60868.0,60867.0,0.009064]
[1724115966170,1.09279577,60868.0,60867.0,0.009064]
[1724115966382,1.15507964,60868.0,60867.0,0.009064]
[1724115966791,1.09279577,60868.0,60867.0,0.009064]
[1724115966997,0.77321677,60868.0,60867.0,0.009064]
[1724115967203,1.09279577,60868.0,60867.0,0.009064]
[1724115967616,1.37849577,60868.0,60867.0,0.009064]
[1724115967820,1.37249577,60868.0,60867.0,0.009064]
[1724115968027,1.87242354,60868.0,60867.0,0.009064]
[1724115968234,1.05291677,60868.0,60867.0,0.009064]
[1724115968440,1.04391677,60868.0,60867.0,0.009064]
[1724115968851,1.05291677,60868.0,60867.0,0.009064]
[1724115969237,1.48014577,60868.0,60867.0,0.009064]
[1724115969500,1.65149454,60868.0,60867.0,0.009064]
[1724115970126,1.64249454,60868.0,60867.0,0.009064]
[1724115970570,1.48014577,60868.0,60867.0,0.009064]
[1724115970789,1.47114577,60868.0,60867.0,0.009064]
[1724115971194,1.48014577,60868.0,60867.0,0.009064]
[1724115973058,1.80872477,60868.0,60867.0,0.009064]
[1724115973263,1.48014577,60868.0,60867.0,0.009064]
[1724115973463,1.63482645,60868.0,60867.0,0.009064]
[1724115973874,1.96340545,60868.0,60867.0,0.009064]
[1724115974889,1.95440545,60868.0,60867.0,0.009064]
[1724115975226,1.96840545,60868.0,60867.0,0.009064]
[1724115976237,1.81372477,60868.0,60867.0,0.009064]
[1724115977209,2.59210377,60868.0,60867.0,0.009064]
[1724115977402,2.19618556,60868.0,60867.0,0.009064]
[1724115977578,2.10258556,60868.0,60867.0,0.00452116]
[1724115977776,2.21695254,60868.0,60867.0,0.00452116]
[1724115978181,1.248848,60859.0,60851.0,0.51424632]
[1724115978381,1.69989677,60859.0,60851.0,0.51424632]
[1724115978603,2.12852477,60859.0,60851.0,0.0002]
[1724115978766,2.35688718,60859.0,60851.0,0.0002]
[1724115978963,2.02825918,60859.0,60851.0,0.0002]
[1724115979163,1.79989677,60859.0,60851.0,0.0002]
[1724115979366,1.79969905,60859.0,60851.0,0.0002]
[1724115979618,1.47107105,60859.0,60851.0,0.0002]
[1724115979822,1.81035502,60859.0,60851.0,0.0002]
[1724115980228,1.98170379,60859.0,60851.0,0.0002]
[1724115980452,1.99270379,60859.0,60851.0,0.0002]
[1724115980863,1.82135502,60859.0,60851.0,0.0002]
[1724115982501,1.87836061,60859.0,60851.0,0.0002]
[1724115984113,1.87836061,60859.0,60840.0,0.2737]
[1724115984114,0.99986033,60859.0,60840.0,0.2737]
[1724115984315,0.591737,60841.0,60840.0,0.2737]
[1724115984517,1.37151077,60841.0,60840.0,0.2737]
[1724115984803,1.85726632,60841.0,60840.0,0.27353396]
[1724115985029,1.85726632,60841.0,60833.0,0.0009097]
[1724115985030,1.24932,60834.0,60833.0,0.0009097]
[1724115985235,1.70036877,60834.0,60833.0,0.0009097]
[1724115985595,1.85743812,60834.0,60833.0,0.0009097]
[1724115986159,1.81094883,60834.0,60833.0,0.0009097]
[1724115987324,1.16742283,60834.0,60833.0,0.0009097]
[1724115987526,1.49618583,60834.0,60833.0,0.0009097]
[1724115988092,0.56162883,60834.0,60833.0,0.2897097]
[1724115988298,1.05477283,60834.0,60833.0,0.2897097]
[1724115988473,1.05477283,60834.0,60833.0,0.29070261]
[1724115988650,0.01058006,60834.0,60833.0,0.2897097]
[1724115988878,0.2797,60848.0,60835.0,0.2888]
[1724115989080,0.09865,60845.0,60835.0,0.2888]
[1724115989316,0.328727,60841.0,60836.0,0.00102193]
[1724115989520,0.09865,60845.0,60836.0,0.00102193]
[1724115989521,0.17134877,60840.0,60836.0,0.00102193]
[1724115989726,0.164371,60838.0,60836.0,0.00102193]
[1724115989922,0.17134877,60837.0,60836.0,0.00102193]
[1724115990480,0.428709,60844.0,60836.0,0.00102193]
[1724115990884,0.014,60840.0,60836.0,0.00102193]
[1724115991099,0.28596476,60843.0,60836.0,0.00102193]
[1724115991100,0.33571677,60839.0,60836.0,0.00102193]
[1724115991261,0.013,60837.0,60836.0,0.00102193]
[1724115992075,0.013,60837.0,60836.0,0.30062193]
[1724115992277,0.2797,60855.0,60844.0,0.001]
[1724115992278,0.01060362,60855.0,60844.0,0.001]
[1724115992478,0.17134877,60854.0,60846.0,0.2986]
[1724115992890,0.17134877,60854.0,60848.0,0.2783]
[1724115993321,0.17134877,60854.0,60847.0,0.00084553]
[1724115993322,0.33567677,60854.0,60849.0,0.27913391]
[1724115993783,0.61900346,60862.0,60853.0,0.2982]
[1724115993784,0.29038646,60862.0,60853.0,0.2982]
[1724115993952,0.29038646,60862.0,60852.0,0.1814]
[1724115993953,0.2797,60869.0,60856.0,0.2982]
[1724115994148,0.04883279,60885.0,60834.0,0.51404632]
[1724115994149,0.01042431,60865.0,60861.0,0.001]
[1724115994345,0.01042431,60865.0,60850.0,0.00081664]
[1724115994346,0.164274,60874.0,60863.0,0.001]
[1724115994527,0.328522,60879.0,60864.0,0.2982]
[1724115994528,0.000827,60871.0,60864.0,0.2982]
[1724115994703,0.230944,60871.0,60864.0,0.29893164]
[1724115994903,0.066662,60871.0,60864.0,0.29893164]
[1724115995113,0.066662,60871.0,60864.0,0.29993164]
[1724115995114,0.000827,60871.0,60864.0,0.29993164]
[1724115995313,0.000827,60871.0,60867.0,0.2928]
[1724115995836,0.000827,60871.0,60867.0,0.29351554]
[1724115996245,0.000827,60871.0,60867.0,0.48611554]
[1724115997160,0.000827,60871.0,60870.0,0.001]
[1724115997370,0.2797,60897.0,60883.0,0.1962]
[1724115997371,0.07615583,60888.0,60883.0,0.1962]
[1724115997656,0.164225,60892.0,60884.0,0.2885]
[1724115997852,0.32843,60896.0,60884.0,0.2885]
[1724115997853,0.065814,60890.0,60884.0,0.28910089]
[1724115998025,0.23716277,60890.0,60884.0,0.28910089]
[1724115998445,0.17134877,60890.0,60884.0,0.28910089]
[1724115998603,0.065814,60891.0,60888.0,0.2885]
[1724115998808,0.164228,60891.0,60888.0,0.28833657]
[1724115999055,0.164228,60891.0,60889.0,0.00057407]
[1724115999257,0.002,60892.0,60889.0,0.00057407]
[1724115999258,0.16423,60890.0,60889.0,0.00057407]
[1724115999461,0.166226,60892.0,60888.0,0.28833657]
[1724115999682,0.166226,60892.0,60889.0,0.00057407]
[1724115999837,0.16423,60890.0,60889.0,0.00057407]
[1724116000041,0.17134877,60890.0,60888.0,0.28833657]
[1724116000328,0.1,60898.0,60889.0,0.00057407]
[1724116000494,0.17134877,60895.0,60889.0,0.00057407]
[1724116000639,0.006,60890.0,60889.0,0.00057407]
[1724116000839,0.1,60894.0,60889.0,0.00057407]
[1724116001040,0.1,60894.0,60892.0,0.001]
[1724116001244,0.06581,60896.0,60894.0,0.001]
[1724116001453,0.01069475,60907.0,60903.0,0.001]
[1724116001661,0.2797,60911.0,60895.0,0.1868]
[1724116001662,0.45104877,60911.0,60904.0,0.001]
[1724116001873,0.45104877,60911.0,60905.0,0.2911]
[1724116001874,0.17134877,60911.0,60905.0,0.2911]
[1724116002083,0.164183,60908.0,60905.0,0.2911]
[1724116002292,0.18202886,60911.0,60906.0,0.00036941]
[1724116002293,0.17134877,60907.0,60906.0,0.00036941]
[1724116002519,0.66390177,60907.0,60906.0,0.00036941]
[1724116002931,1.09227077,60907.0,60906.0,0.00036941]
[1724116003171,0.492561,60906.0,60905.0,0.2911]
[1724116003351,0.76390977,60906.0,60905.0,0.2911]
[1724116003772,1.09228377,60906.0,60905.0,0.2911]
[1724116003973,1.09228377,60906.0,60905.0,0.29091175]
[1724116004207,0.164213,60897.0,60895.0,0.1868]
[1724116004438,0.17134877,60896.0,60895.0,0.1868]
[1724116004644,0.2797,60901.0,60895.0,0.1868]
[1724116004850,0.17134877,60900.0,60895.0,0.1868]
[1724116005054,0.164211,60897.0,60895.0,0.1868]
[1724116005265,0.164207,60899.0,60895.0,0.1868]
[1724116005478,0.33555777,60898.0,60895.0,0.1908]
[1724116005704,0.164212,60897.0,60895.0,0.1908]
[1724116005887,0.66399077,60896.0,60895.0,0.004]
[1724116006102,0.76399077,60896.0,60895.0,0.004]
[1724116006303,1.09241877,60896.0,60895.0,0.004]
[1724116006535,0.164233,60889.0,60888.0,0.1881]
[1724116006744,0.492699,60889.0,60888.0,0.1881]
[1724116007571,0.821177,60888.0,60887.0,0.2987]
[1724116007769,1.09252577,60888.0,60887.0,0.2987]
[1724116007979,1.09252577,60888.0,60882.0,0.4831]
[1724116007980,0.492747,60883.0,60882.0,0.4831]
[1724116008334,0.492747,60883.0,60872.0,0.001]
[1724116008335,0.164265,60877.0,60876.0,0.4831]
[1724116008539,0.32851,60881.0,60876.0,0.4831]
[1724116008540,0.164263,60878.0,60876.0,0.4831]
[1724116008872,0.33560777,60880.0,60876.0,0.4831]
[1724116009077,0.164261,60879.0,60876.0,0.4831]
[1724116009309,0.33560777,60880.0,60876.0,0.4831]
[1724116009680,0.164262,60879.0,60876.0,0.4831]
[1724116010062,0.16425,60883.0,60877.0,0.001]
[1724116010273,0.01066957,60884.0,60877.0,0.001]
[1724116010478,0.17134877,60884.0,60877.0,0.001]
[1724116010908,0.012,60879.0,60877.0,0.001]
[1724116011117,0.012,60879.0,60878.0,0.01175971]
[1724116011313,0.012,60879.0,60878.0,0.31045971]
[1724116011975,0.17449138,60887.0,60878.0,0.31045971]
[1724116011976,0.1,60886.0,60878.0,0.31045971]
[1724116012202,0.1,60886.0,60878.0,0.2997]
[1724116012608,0.17743111,60886.0,60879.0,0.0107682]
[1724116012809,0.1,60886.0,60879.0,0.0107682]
[1724116013014,0.49983677,60885.0,60879.0,0.0107682]
[1724116013271,0.328499,60883.0,60879.0,0.0107682]
[1724116013475,0.164255,60881.0,60879.0,0.0107682]
[1724116013675,0.49983677,60885.0,60879.0,0.0107682]
[1724116013676,0.33559377,60885.0,60880.0,0.235]
[1724116013880,0.01025038,60887.0,60886.0,0.001]
[1724116014110,0.328434,60895.0,60887.0,0.2327]
[1724116014325,0.2797,60900.0,60887.0,0.2327]
[1724116014326,0.164235,60888.0,60887.0,0.2327]
[1724116014537,0.66405477,60888.0,60887.0,0.2327]
[1724116015105,0.33558377,60888.0,60887.0,0.2327]
[1724116015783,0.34958377,60888.0,60887.0,0.2337]
[1724116015983,0.67805477,60888.0,60887.0,0.2337]
[1724116016184,0.67805477,60888.0,60887.0,0.24438211]
[1724116016625,0.67805477,60888.0,60887.0,0.2337]
[1724116016626,1.1909803,60888.0,60887.0,0.2337]
[1724116016857,1.10652577,60888.0,60887.0,0.2337]
[1724116017072,1.10652577,60888.0,60887.0,0.001]
[1724116018559,1.11703191,60888.0,60887.0,0.001]
[1724116020703,0.78856091,60888.0,60887.0,0.001]
[1724116021132,0.46008991,60888.0,60887.0,0.001]
[1724116021755,0.78856091,60888.0,60887.0,0.001]
[1724116021932,0.46008991,60888.0,60887.0,0.001]
[1724116022191,0.78856091,60888.0,60887.0,0.001]
[1724116022397,0.78856091,60888.0,60887.0,0.01170035]
[1724116022611,1.11703191,60888.0,60887.0,0.001]
[1724116023037,0.78856091,60888.0,60887.0,0.001]
[1724116024097,0.46008991,60888.0,60887.0,0.001]
[1724116024523,0.014,60888.0,60887.0,0.2166]
[1724116024738,0.014,60888.0,60887.0,0.4035]
[1724116024937,0.014,60888.0,60887.0,0.41420035]
[1724116025367,0.014,60888.0,60887.0,0.41320035]
[1724116025570,0.01069651,60895.0,60891.0,0.001]
[1724116025790,0.17134877,60894.0,60887.0,0.41320035]
[1724116026049,0.04460846,60895.0,60892.0,0.01064656]
[1724116026050,1.09110877,60893.0,60892.0,0.01064656]
[1724116026249,0.164246,60884.0,60883.0,0.2316]
[1724116026457,0.33559477,60884.0,60883.0,0.2316]
[1724116026668,0.33559477,60884.0,60877.0,0.0009097]
[1724116026669,0.591437,60878.0,60877.0,0.0009097]
[1724116026876,0.09865,60873.0,60862.0,0.2316]
[1724116027114,0.164303,60863.0,60862.0,0.2316]
[1724116027352,0.17134877,60863.0,60862.0,0.2316]
[1724116027559,0.164296,60866.0,60862.0,0.2316]
[1724116027761,0.17134877,60865.0,60862.0,0.2316]
[1724116027979,0.492909,60863.0,60862.0,0.2316]
[1724116028183,0.33564677,60865.0,60862.0,0.2316]
[1724116028392,0.492909,60863.0,60862.0,0.2316]
[1724116028817,0.66425777,60863.0,60862.0,0.2316]
[1724116029023,0.99286377,60863.0,60862.0,0.2316]
[1724116029224,1.00286377,60863.0,60862.0,0.2326]
[1724116029435,1.33146977,60863.0,60862.0,0.001]
[1724116029636,1.43146977,60863.0,60862.0,0.001]
[1724116029838,1.44184252,60863.0,60862.0,0.001]
[1724116030050,0.492949,60858.0,60857.0,0.2287]
[1724116030261,0.66429777,60858.0,60857.0,0.2287]
[1724116030465,0.99293077,60858.0,60857.0,0.2287]
[1724116030911,0.41428972,60858.0,60841.0,0.1878]
[1724116031176,0.164353,60845.0,60841.0,0.1868]
[1724116031390,0.328691,60848.0,60843.0,0.2373]
[1724116031391,0.17134877,60844.0,60843.0,0.2373]
[1724116031608,0.17134877,60844.0,60842.0,0.00947952]
[1724116031609,0.164357,60843.0,60842.0,0.00947952]
[1724116031802,1.09313377,60843.0,60842.0,0.00947952]
[1724116032021,0.164366,60840.0,60837.0,0.2373]
[1724116032214,0.33571677,60839.0,60837.0,0.2373]
[1724116032425,0.16437,60838.0,60837.0,0.2373]
[1724116032651,0.66445977,60838.0,60837.0,0.2373]
[1724116032855,0.33571877,60838.0,60837.0,0.2373]
[1724116033378,0.17134877,60838.0,60837.0,0.2373]
[1724116033803,0.34071877,60838.0,60837.0,0.2373]
[1724116034005,0.005,60838.0,60837.0,0.2373]
[1724116034213,0.1,60843.0,60837.0,0.2373]
[1724116034422,0.1,60843.0,60840.0,0.001]
[1724116034619,0.328705,60845.0,60840.0,0.001]
[1724116034828,0.16436,60842.0,60840.0,0.001]
[1724116035070,0.1,60841.0,60840.0,0.001]
[1724116035276,0.264362,60841.0,60840.0,0.001]
[1724116035475,0.264362,60841.0,60837.0,0.2373]
[1724116035681,0.002,60838.0,60837.0,0.2373]
[1724116035881,0.495111,60838.0,60837.0,0.2373]
[1724116036085,0.66645977,60838.0,60837.0,0.2373]
[1724116036295,0.99520077,60838.0,60837.0,0.2373]
[1724116036487,0.99320077,60838.0,60837.0,0.2373]
[1724116036770,0.99520077,60838.0,60837.0,0.2373]
[1724116037167,0.99320077,60838.0,60837.0,0.2373]
[1724116037413,0.99320077,60838.0,60836.0,0.0009108]
[1724116037414,0.49312,60837.0,60836.0,0.0009108]
[1724116037618,0.99321577,60837.0,60836.0,0.0009108]
[1724116037861,0.66446877,60837.0,60836.0,0.0009108]
[1724116038065,0.99321577,60837.0,60836.0,0.0009108]
[1724116039478,0.66446877,60837.0,60836.0,0.0009108]
[1724116039718,0.99721577,60837.0,60836.0,0.0009108]
[1724116039974,1.10786245,60837.0,60836.0,0.0009108]
[1724116040713,1.7645692,60837.0,60836.0,0.0009108]
[1724116042517,2.0893162,60837.0,60836.0,0.0009108]
[1724116042748,1.7745692,60837.0,60836.0,0.0009108]
[1724116042861,2.1033162,60837.0,60836.0,0.0009108]
[1724116043223,1.61690945,60837.0,60836.0,0.0009108]
[1724116043433,1.63090945,60837.0,60836.0,0.0009108]
[1724116043642,1.61690945,60837.0,60836.0,0.0009108]
[1724116043818,1.94545884,60837.0,60836.0,0.0009108]
[1724116043967,1.63071184,60837.0,60836.0,0.0009108]
[1724116044172,1.71536184,60837.0,60836.0,0.0009108]
[1724116044602,2.21545761,60837.0,60836.0,0.0009108]
[1724116044799,1.200297,60831.0,60829.0,0.0009031]
[1724116045020,1.80042477,60831.0,60829.0,0.0009031]
[1724116046257,1.81442477,60831.0,60829.0,0.0009031]
[1724116046609,1.93257649,60831.0,60829.0,0.0009031]
[1724116047420,1.81442477,60831.0,60829.0,0.0009031]
[1724116047809,1.81442477,60831.0,60813.0,0.0130476]
[1724116047810,1.150992,60817.0,60813.0,0.0120476]
[1724116048042,1.42099077,60817.0,60813.0,0.0120476]
[1724116048252,1.52099077,60817.0,60813.0,0.0120476]
[1724116048864,1.09348577,60817.0,60813.0,0.0120476]
[1724116049299,1.19213577,60817.0,60813.0,0.0120476]
[1724116049476,1.20613577,60817.0,60813.0,0.0120476]
[1724116049616,1.52099077,60817.0,60813.0,0.0120476]
[1724116050030,1.53499077,60817.0,60813.0,0.0120476]
[1724116050466,1.52099077,60817.0,60813.0,0.0120476]
[1724116050663,1.69301555,60817.0,60813.0,0.0120476]
[1724116051278,1.70327798,60817.0,60813.0,0.0120476]
[1724116051724,2.03213298,60817.0,60813.0,0.0120476]
[1724116052117,1.094055,60812.0,60811.0,0.0002]
[1724116052291,1.094055,60812.0,60806.0,0.009075]
[1724116052292,0.592006,60808.0,60806.0,0.009075]
[1724116052492,1.52116277,60808.0,60806.0,0.009075]
[1724116052796,1.85006677,60808.0,60806.0,0.009075]
[1724116054258,1.86406677,60808.0,60806.0,0.009075]
[1724116054469,2.03541554,60808.0,60806.0,0.009075]
[1724116054595,2.03541554,60808.0,60801.0,0.009075]
[1724116054596,2.031762,60802.0,60801.0,0.009075]
[1724116054815,2.12991077,60802.0,60801.0,0.009075]
[1724116055003,2.12991077,60802.0,60794.0,0.009031]
[1724116055004,1.578961,60798.0,60794.0,0.009031]
[1724116055194,1.85030977,60798.0,60794.0,0.009031]
[1724116055799,1.85030977,60798.0,60797.0,0.00527833]
[1724116056479,1.86430977,60798.0,60797.0,0.00527833]
[1724116056673,1.85030977,60798.0,60797.0,0.00527833]
[1724116056876,2.02066994,60798.0,60797.0,0.00527833]
[1724116057143,1.86430977,60798.0,60797.0,0.00527833]
[1724116057423,1.52135177,60798.0,60797.0,0.00527833]
[1724116058600,0.76343577,60798.0,60797.0,0.00527833]
[1724116058835,1.10639377,60798.0,60797.0,0.00527833]
[1724116059006,1.09239377,60798.0,60797.0,0.00527833]
[1724116059211,1.26351741,60798.0,60797.0,0.00527833]
[1724116059424,1.10639377,60798.0,60797.0,0.00527833]
[1724116059617,0.33582777,60798.0,60797.0,0.00527833]
[1724116059979,0.99374377,60798.0,60797.0,0.00527833]
[1724116060688,1.10774377,60798.0,60797.0,0.00527833]
[1724116062085,1.09374377,60798.0,60797.0,0.00527833]
[1724116062317,0.28534877,60798.0,60797.0,0.21697833]
[1724116062521,0.28534877,60798.0,60797.0,0.39977833]
[1724116062522,0.18534877,60798.0,60797.0,0.39977833]
[1724116063151,0.17134877,60798.0,60797.0,0.39977833]
[1724116063358,0.18534877,60798.0,60797.0,0.39977833]
[1724116063797,0.28534877,60798.0,60797.0,0.39977833]
[1724116064001,0.45982777,60798.0,60797.0,0.39977833]
[1724116064718,0.85469877,60798.0,60797.0,0.39977833]
[1724116065144,1.18365677,60798.0,60797.0,0.39977833]
[1724116065396,1.76354411,60798.0,60797.0,0.21697833]
[1724116065597,0.95334877,60798.0,60797.0,0.21697833]
[1724116065815,0.36126177,60798.0,60797.0,0.21697833]
[1724116066655,0.36126177,60798.0,60797.0,0.40147833]
[1724116066656,0.024,60798.0,60797.0,0.40147833]
[1724116067273,0.024,60798.0,60797.0,0.40047833]
[1724116068119,0.35982777,60798.0,60797.0,0.40047833]
[1724116068329,0.33582777,60798.0,60797.0,0.40047833]
[1724116068532,0.66478577,60798.0,60797.0,0.40047833]
[1724116068740,0.77078577,60798.0,60797.0,0.40047833]
[1724116068950,0.27734877,60798.0,60797.0,0.40047833]
[1724116069157,0.28980353,60798.0,60797.0,0.40047833]
[1724116069598,0.28180353,60798.0,60797.0,0.40047833]
[1724116069805,0.28180353,60798.0,60797.0,0.00527833]
[1724116069806,0.87589053,60798.0,60797.0,0.00527833]
[1724116070014,1.20484853,60798.0,60797.0,0.00527833]
[1724116070660,0.87589053,60798.0,60797.0,0.23717833]
[1724116070873,0.77724053,60798.0,60797.0,0.23717833]
[1724116071053,0.44828253,60798.0,60797.0,0.23717833]
[1724116071254,0.28380353,60798.0,60797.0,0.41137833]
[1724116071673,0.45028253,60798.0,60797.0,0.41137833]
[1724116072083,0.77524053,60798.0,60797.0,0.41137833]
[1724116072501,0.45428253,60798.0,60797.0,0.41137833]
[1724116073145,0.78324053,60798.0,60797.0,0.41137833]
[1724116073362,0.78524053,60798.0,60797.0,0.41137833]
[1724116073497,0.77724053,60798.0,60797.0,0.41137833]
[1724116073953,1.10619853,60798.0,60797.0,0.41137833]
[1724116074146,1.20484853,60798.0,60797.0,0.23717833]
[1724116074393,1.69377638,60798.0,60797.0,0.23717833]
[1724116074603,1.69377638,60798.0,60797.0,0.00527833]
[1724116074604,1.53380653,60798.0,60797.0,0.00527833]
[1724116074834,1.86276453,60798.0,60797.0,0.00527833]
[1724116074948,2.10334888,60798.0,60797.0,0.00527833]
[1724116075145,2.10334888,60798.0,60794.0,0.009031]
[1724116075146,1.579033,60795.0,60794.0,0.009031]
[1724116075350,0.92114,60791.0,60790.0,0.009031]
[1724116075548,1.57856912,60791.0,60790.0,0.009031]
[1724116075793,1.90756512,60791.0,60790.0,0.009031]
[1724116076151,1.52148477,60791.0,60790.0,0.009031]
[1724116076428,1.74994373,60791.0,60790.0,0.009031]
[1724116076772,1.57859496,60791.0,60790.0,0.009031]
[1724116077764,2.09120432,60791.0,60790.0,0.009031]
[1724116078008,1.202287,60780.0,60779.0,0.2117]
[1724116078209,1.80269077,60780.0,60779.0,0.2067]
[1724116078853,1.250398,60777.0,60776.0,0.1]
[1724116079042,1.52174677,60777.0,60776.0,0.1]
[1724116079246,1.85081777,60777.0,60776.0,0.1]
[1724116079671,1.90796145,60777.0,60776.0,0.1]
[1724116079887,2.04082913,60777.0,60776.0,0.1]
[1724116080110,1.65461445,60777.0,60776.0,0.1]
[1724116080318,1.43409677,60777.0,60776.0,0.1]
[1724116081602,1.48024775,60777.0,60776.0,0.1]
[1724116081784,1.42309677,60777.0,60776.0,0.1]
[1724116082167,1.43709677,60777.0,60776.0,0.1]
[1724116082727,1.42309677,60777.0,60776.0,0.1]
[1724116083150,1.43709677,60777.0,60776.0,0.1]
[1724116083356,1.43709677,60777.0,60776.0,0.3224]
[1724116083357,0.67895477,60777.0,60776.0,0.3224]
[1724116083766,1.00802577,60777.0,60776.0,0.33063404]
[1724116084183,1.33709677,60777.0,60776.0,0.33063404]
[1724116084555,1.64809677,60777.0,60776.0,0.10823404]
[1724116084760,1.91614677,60777.0,60775.0,0.009075]
[1724116084936,1.91614677,60777.0,60771.0,0.0002]
[1724116084937,0.263199,60772.0,60771.0,0.0002]
[1724116085140,0.263199,60772.0,60761.0,0.2221]
[1724116085141,0.263204,60770.0,60761.0,0.2221]
[1724116085340,1.41777077,60770.0,60761.0,0.2221]
[1724116085585,2.22776585,60770.0,60761.0,0.2221]
[1724116086577,2.28416585,60770.0,60761.0,0.2221]
[1724116086775,2.28416585,60770.0,60756.0,0.2207]
[1724116086776,0.16459,60757.0,60756.0,0.2207]
[1724116086992,0.76511877,60757.0,60756.0,0.2207]
[1724116087167,1.09429877,60757.0,60756.0,0.2207]
[1724116087556,1.56104865,60757.0,60756.0,0.2207]
[1724116087777,1.56104865,60757.0,60755.0,0.009086]
[1724116087778,0.493777,60756.0,60755.0,0.009086]
[1724116087987,1.52214577,60756.0,60755.0,0.009086]
[1724116088462,1.42349577,60756.0,60755.0,0.009086]
[1724116088663,1.49671997,60756.0,60755.0,0.009086]
[1724116088959,1.42349577,60756.0,60755.0,0.230386]
[1724116089165,1.44807101,60756.0,60755.0,0.230386]